fUST/lending_fUST_20250603
["ID","MTS","AMOUNT","RATE_DAILY","PERIOD"]
[363826628,1748890246006,-476.46,0.00018904,2]
[363826629,1748890246017,-608.92,0.00018904,2]
[363826630,1748890246027,-579.48,0.00018904,2]
[363826632,1748890246037,-528.51,0.00018904,2]
[363826634,1748890246046,-1196.61,0.00018904,2]
[363826635,1748890246056,-1374.43,0.00018904,2]
[363826637,1748890246065,-440.0,0.00018904,2]
[363826639,1748890246075,-1981.04,0.00018989,2]
[363826641,1748890246084,-1090.80427218,0.00019072,2]
[363826643,1748890246094,-370.58054704,0.00019119,2]
[363826644,1748890246103,-500.0,0.00019163,2]
[363826645,1748890246113,-500.0,0.00019163,2]
[363826646,1748890246122,-500.0,0.00019163,2]
[363826648,1748890246133,-440.0,0.00019178,2]
[363826649,1748890246143,-632.38,0.00019178,2]
[363826650,1748890246152,-685.19,0.00019178,2]
[363826652,1748890246162,-440.0,0.00019178,2]
[363826653,1748890246172,-440.0,0.00019178,2]
[363826654,1748890246182,-440.0,0.00019178,2]
[363826655,1748890246191,-456.31,0.00019178,2]
[363826656,1748890246201,-519.54,0.00019178,2]
[363826657,1748890246211,-440.0,0.00019178,2]
[363826658,1748890246220,-449.36,0.00019178,2]
[363826659,1748890246230,-608.92,0.00019178,2]
[363826660,1748890246239,-440.0,0.00019178,2]
[363826661,1748890246247,-440.0,0.00019178,2]
[363826662,1748890246256,-416.91681944,0.00019178,2]
[363826663,1748890246266,-579.48,0.00019178,2]
[363826664,1748890246275,-528.51,0.00019178,2]
[363826665,1748890246284,-1196.61,0.00019178,2]
[363826666,1748890246294,-1374.43,0.00019178,2]
[363826667,1748890246304,-440.0,0.00019178,2]
[363826668,1748890246314,-354.793915,0.00019178,2]
[363826669,1748890246323,-1090.80427218,0.00019314,2]
[363826670,1748890246333,-1000.0,0.00019373,2]
[363826671,1748890246343,-409.87,0.00019452,2]
[363826672,1748890246352,-632.38,0.00019452,2]
[363826673,1748890246361,-685.19,0.00019452,2]
[363826674,1748890246370,-440.0,0.00019452,2]
[363826675,1748890246380,-440.0,0.00019452,2]
[363826676,1748890246389,-425.07058184,0.00019452,2]
[363826680,1748890246639,-14.92941816,0.00019452,2]
[363826681,1748890246650,-418.92977224,0.00019452,2]
[363826682,1748890246870,45.99877947,0.0001555,2]
[363826683,1748890247004,-3194.75259197,0.0001555,2]
[363826684,1748890247016,-1759.24862856,0.0001555,2]
[363826685,1748890247026,-440.0,0.00016438,2]
[363826686,1748890247036,-430.0,0.00016438,2]
[363826687,1748890247046,-191.8996673,0.00016438,2]
[363826688,1748890247056,-430.0,0.00016438,2]
[363826689,1748890247065,-440.0,0.00016438,2]
[363826690,1748890247075,-440.0,0.00016712,2]
[363826691,1748890247084,-440.0,0.00016712,2]
[363826692,1748890247094,-440.0,0.00016986,2]
[363826693,1748890247103,-440.0,0.00016986,2]
[363826694,1748890247113,-440.0,0.0001726,2]
[363826695,1748890247123,-440.0,0.0001726,2]
[363826696,1748890247132,-440.0,0.00017534,2]
[363826697,1748890247142,-440.0,0.00017534,2]
[363826698,1748890247152,-440.0,0.00017808,2]
[363826699,1748890247162,-440.0,0.00017808,2]
[363826700,1748890247171,-440.0,0.00018082,2]
[363826701,1748890247180,-396.15,0.00018082,2]
[363826702,1748890247190,-440.0,0.00018356,2]
[363826703,1748890247200,-440.0,0.0001863,2]
[363826704,1748890247209,-440.0,0.00018904,2]
[363826705,1748890247219,-440.0,0.00019178,2]
[363826706,1748890247229,-37.38022776,0.00019452,2]
[363826707,1748890247239,-321.03276455,0.00019452,2]
[363826708,1748890247249,-449.36,0.00019452,2]
[363826709,1748890247258,-608.92,0.00019452,2]
[363826710,1748890247268,-579.48,0.00019452,2]
[363826711,1748890247277,-528.51,0.00019452,2]
[363826712,1748890247287,-1196.61,0.00019452,2]
[363826713,1748890247299,-1374.43,0.00019452,2]
[363826714,1748890247308,-440.0,0.00019452,2]
[363826715,1748890247318,-285.31,0.00019452,2]
[363826716,1748890247328,-1090.80427218,0.00019555,2]
[363826717,1748890247338,-499.67,0.000196,2]
[363826718,1748890247348,-587.0,0.0001963,2]
[363826719,1748890247357,-1000.0,0.0001971,2]
[363826720,1748890247367,-1000.0,0.0001971,2]
[363826721,1748890247376,-632.38,0.00019726,2]
[363826722,1748890247386,-685.19,0.00019726,2]
[363826723,1748890247396,-282.64280385,0.00019726,2]
[363826724,1748890247408,-157.35719615,0.00019726,2]
[363826725,1748890247419,-440.0,0.00019726,2]
[363826726,1748890247429,-440.0,0.00019726,2]
[363826727,1748890247439,-456.31,0.00019726,2]
[363826728,1748890247460,-449.36,0.00019726,2]
[363826729,1748890247471,-557.80023875,0.00019726,2]
[363826730,1748890247484,-51.11976125,0.00019726,2]
[363826731,1748890247494,-579.48,0.00019726,2]
[363826732,1748890247504,-528.51,0.00019726,2]
[363826733,1748890247514,-1196.61,0.00019726,2]
[363826734,1748890247524,-1374.43,0.00019726,2]
[363826735,1748890247534,-440.0,0.00019726,2]
[363826736,1748890247544,-1500.0,0.00019766,2]
[363826737,1748890247554,-882.56920434,0.00019797,2]
[363826738,1748890247566,-208.23506784,0.00019797,2]
[363826739,1748890247576,-2971.56,0.00019852,2]
[363826740,1748890247586,-840.67825308,0.00019921,2]
[363826741,1748890247596,-1001.68693462,0.0002,5]
[363826742,1748890247607,-632.38,0.0002,2]
[363826743,1748890247630,-685.19,0.0002,2]
[363826744,1748890247643,-190.73854686,0.0002,2]
[363826745,1748890247654,-440.0,0.0002,2]
[363826746,1748890247664,-189.26210424,0.0002,2]
[363826747,1748890247682,-250.73789576,0.0002,2]
[363826748,1748890247693,-456.31,0.0002,2]
[363826749,1748890247703,-449.36,0.0002,2]
[363826750,1748890247716,-608.92,0.0002,2]
[363826751,1748890247727,-579.48,0.0002,2]
[363826752,1748890247738,-528.51,0.0002,2]
[363826753,1748890247747,-1196.61,0.0002,2]
[363826754,1748890247758,-1374.43,0.0002,2]
[363826755,1748890247768,-440.0,0.0002,2]
[363826756,1748890247778,-1090.80427218,0.00020038,2]
[363826757,1748890247788,-163.8376925,0.00020089,2]
[363826758,1748890247799,-604.711273,0.00020187,2]
[363826759,1748890247810,-500.0,0.00020258,2]
[363826760,1748890247819,-1500.0,0.00020258,2]
[363826761,1748890247830,-632.38,0.00020273,2]
[363826762,1748890247841,-685.19,0.00020273,2]
[363826763,1748890247851,-440.0,0.00020273,2]
[363826764,1748890247862,-440.0,0.00020273,2]
[363826765,1748890247872,-456.31,0.00020273,2]
[363826766,1748890247883,-449.36,0.00020273,2]
[363826767,1748890247893,-608.92,0.00020273,2]
[363826768,1748890247904,-579.48,0.00020273,2]
[363826769,1748890247915,-528.51,0.00020273,2]
[363826770,1748890247926,-1196.61,0.00020273,2]
[363826771,1748890247937,-1374.43,0.00020273,2]
[363826772,1748890247947,-440.0,0.00020273,2]
[363826773,1748890247959,-1090.80427218,0.00020279,3]
[363826774,1748890247969,-370.58054704,0.0002051,2]
[363826775,1748890247980,-1090.80427218,0.00020521,3]
[363826776,1748890247990,-500.0,0.00020547,2]
[363826777,1748890248000,-632.38,0.00020547,2]
[363826778,1748890248010,-685.19,0.00020547,2]
[363826779,1748890248019,-440.0,0.00020547,2]
[363826780,1748890248030,-440.0,0.00020547,2]
[363826781,1748890248041,-456.31,0.00020547,2]
[363826782,1748890248053,-449.36,0.00020547,2]
[363826783,1748890248064,-608.92,0.00020547,2]
[363826784,1748890248075,-579.48,0.00020547,2]
[363826785,1748890248086,-528.51,0.00020547,2]
[363826786,1748890248097,-1196.61,0.00020547,2]
[363826787,1748890248109,-1374.43,0.00020547,2]
[363826788,1748890248123,-440.0,0.00020547,2]
[363826789,1748890248134,-500.0,0.00020599,2]
[363826790,1748890248145,-500.0,0.00020599,2]
[363826791,1748890248156,-500.0,0.00020599,2]
[363826792,1748890248166,-500.0,0.00020599,2]
[363826793,1748890248177,-587.5800559,0.00020599,2]
[363826794,1748890248188,-500.0,0.00020599,2]
[363826795,1748890248198,-500.0,0.00020599,2]
[363826796,1748890248209,-500.0,0.00020599,2]
[363826797,1748890248219,-500.0,0.00020599,2]
[363826798,1748890248229,-318.88459178,0.00020599,2]
[363826799,1748890248239,-500.0,0.00020599,2]
[363826800,1748890248249,-500.0,0.00020599,2]
[363826801,1748890248261,-705.24,0.000206,2]
[363826802,1748890248271,-1607.72,0.000206,2]
[363826803,1748890248281,-6757.33,0.000206,2]
[363826804,1748890248293,-50837.04,0.000206,2]
[363826805,1748890248303,-3962.08,0.00020715,2]
[363826806,1748890248314,-250.0,0.00020734,2]
[363826807,1748890248324,-1090.80427218,0.00020762,3]
[363826808,1748890248334,-2000.0,0.00020806,2]
[363826809,1748890248345,-632.38,0.00020821,2]
[363826810,1748890248356,-685.19,0.00020821,2]
[363826811,1748890248366,-440.0,0.00020821,2]
[363826812,1748890248376,-440.0,0.00020821,2]
[363826813,1748890248386,-456.31,0.00020821,2]
[363826814,1748890248396,-449.36,0.00020821,2]
[363826815,1748890248405,-608.92,0.00020821,2]
[363826817,1748890248416,-579.48,0.00020821,2]
[363826818,1748890248426,-528.51,0.00020821,2]
[363826819,1748890248437,-1196.61,0.00020821,2]
[363826821,1748890248446,-1374.43,0.00020821,2]
[363826823,1748890248456,-440.0,0.00020821,2]
[363826824,1748890248465,-1500.0,0.00020862,2]
[363826825,1748890248475,-151.0,0.000209,3]
[363826827,1748890248485,-1090.80427218,0.00021003,4]
[363826828,1748890248494,-500.0,0.00021095,3]
[363826829,1748890248504,-632.38,0.00021095,2]
[363826830,1748890248514,-685.19,0.00021095,2]
[363826832,1748890248524,-412.2,0.00021095,2]
[363826833,1748890248534,-440.0,0.00021095,2]
[363826834,1748890248545,-456.31,0.00021095,2]
[363826835,1748890248556,-449.36,0.00021095,2]
[363826836,1748890248566,-608.92,0.00021095,2]
[363826837,1748890248579,-579.48,0.00021095,2]
[363826838,1748890248589,-528.51,0.00021095,2]
[363826839,1748890248599,-1196.61,0.00021095,2]
[363826840,1748890248610,-1374.43,0.00021095,2]
[363826841,1748890248620,-440.0,0.00021095,2]
[363826842,1748890248630,-594.9417706,0.00021233,2]
[363826843,1748890248640,-1090.80427218,0.00021245,4]
[363826844,1748890248651,-2500.0,0.00021354,2]
[363826845,1748890248661,-632.38,0.00021369,2]
[363826846,1748890248671,-685.19,0.00021369,2]
[363826847,1748890248681,-440.0,0.00021369,2]
[363826849,1748890248691,-456.31,0.00021369,2]
[363826850,1748890248701,-449.36,0.00021369,2]
[363826851,1748890248713,-608.92,0.00021369,2]
[363826852,1748890248723,-579.48,0.00021369,2]
[363826853,1748890248733,-528.51,0.00021369,2]
[363826854,1748890248743,-1196.61,0.00021369,2]
[363826856,1748890248752,-1374.43,0.00021369,2]
[363826857,1748890248761,-440.0,0.00021369,2]
[363826858,1748890248772,-151.0,0.000214,3]
[363826859,1748890248782,-160.0,0.00021415,3]
[363826860,1748890248792,-594.9417706,0.00021417,2]
[363826861,1748890248802,-823.0,0.00021452,2]
[363826862,1748890248812,-153.0,0.00021452,2]
[363826864,1748890248954,-179.5149992,0.00021452,2]
[363826865,1748890248965,-158.5152029,0.00021452,2]
[363826866,1748890248974,-572.502888,0.00021452,2]
[363826867,1748890248985,-158.5152029,0.00021452,2]
[363826868,1748890248995,-572.502888,0.00021452,2]
[363826869,1748890249004,-153.0,0.00021452,2]
[363826870,1748890249014,-572.502888,0.00021452,2]
[363826871,1748890249024,-158.5152029,0.00021452,2]
[363826872,1748890249034,-176.5287595,0.00021452,2]
[363826873,1748890249043,-346.8424236,0.00021452,2]
[363826874,1748890249053,-153.0,0.00021452,2]
[363826875,1748890249063,-390.5657552,0.00021452,2]
[363826876,1748890249073,-572.502888,0.00021452,2]
[363826877,1748890249082,-158.5152029,0.00021452,2]
[363826878,1748890249092,-176.5287595,0.00021452,2]
[363826879,1748890249102,-153.0,0.00021452,2]
[363826880,1748890249112,-158.5152029,0.00021452,2]
[363826881,1748890249122,-572.502888,0.00021452,2]
[363826882,1748890249132,-153.0,0.00021452,2]
[363826883,1748890249141,-176.5287595,0.00021452,2]
[363826884,1748890249151,-572.502888,0.00021452,2]
[363826885,1748890249162,-158.5152029,0.00021452,2]
[363826886,1748890249172,-176.5287595,0.00021452,2]
[363826887,1748890249182,-158.5152029,0.00021452,2]
[363826888,1748890249192,-572.502888,0.00021452,2]
[363826889,1748890249202,-176.5287595,0.00021452,2]
[363826890,1748890249212,-153.0,0.00021452,2]
[363826891,1748890249221,-572.502888,0.00021452,2]
[363826892,1748890249231,-153.0,0.00021452,2]
[363826893,1748890249241,-158.5152029,0.00021452,2]
[363826894,1748890249255,-176.414694,0.00021452,2]
[363826895,1748890249265,-153.0,0.00021452,2]
[363826896,1748890249275,-153.0,0.00021452,2]
[363826897,1748890249287,-153.0,0.00021452,2]
[363826898,1748890249298,-153.0,0.00021452,2]
[363826899,1748890249308,-153.0,0.00021452,2]
[363826900,1748890249318,-153.0,0.00021452,2]
[363826901,1748890249328,-1090.80427218,0.00021486,5]
[363826902,1748890249338,-4952.6,0.00021578,2]
[363826903,1748890249349,-207.4,0.00021607,2]
[363826904,1748890249359,-151.0,0.00021607,2]
[363826905,1748890249370,-151.0,0.00021607,2]
[363826906,1748890249380,-151.0,0.00021607,2]
[363826907,1748890249391,-151.0,0.00021607,2]
[363826908,1748890249403,-500.0,0.00021607,2]
[363826909,1748890249413,-151.0,0.00021607,2]
[363826910,1748890249423,-500.0,0.00021607,2]
[363826911,1748890249433,-500.0,0.00021607,2]
[363826912,1748890249453,-500.0,0.00021607,2]
[363826913,1748890249464,-151.0,0.00021607,2]
[363826915,1748890249475,-500.0,0.00021607,2]
[363826916,1748890249485,-500.0,0.00021607,2]
[363826917,1748890249495,-151.0,0.00021607,2]
[363826918,1748890249505,-500.0,0.00021607,2]
[363826919,1748890249516,-226.76390347,0.00021607,2]
[363826920,1748890249526,-500.0,0.00021607,2]
[363826921,1748890249537,-500.0,0.00021607,2]
[363826922,1748890249548,-500.0,0.00021607,2]
[363826923,1748890249559,-500.0,0.00021607,2]
[363826924,1748890249570,-500.0,0.00021607,2]
[363826926,1748890249580,-5000.0,0.00021607,2]
[363826927,1748890249590,-500.0,0.00021607,2]
[363826928,1748890249600,-500.0,0.00021607,2]
[363826929,1748890249610,-500.0,0.00021607,2]
[363826930,1748890249620,-500.0,0.00021607,2]
[363826931,1748890249630,-500.0,0.00021607,2]
[363826932,1748890249640,-500.0,0.00021607,2]
[363826933,1748890249650,-500.0,0.00021607,2]
[363826934,1748890249660,-500.0,0.00021607,2]
[363826935,1748890249670,-500.0,0.00021607,2]
[363826936,1748890249680,-500.0,0.00021607,2]
[363826937,1748890249691,-500.0,0.00021607,2]
[363826938,1748890249700,-500.0,0.00021607,2]
[363826939,1748890249712,-1841.37601661,0.00021607,2]
[363826940,1748890249723,-300.0,0.00021607,2]
[363826941,1748890249733,-300.0,0.00021607,2]
[363826942,1748890249743,-300.0,0.00021607,2]
[363826943,1748890249753,-300.0,0.00021607,2]
[363826944,1748890249763,-202.5886477,0.00021607,2]
[363826945,1748890249774,-500.0,0.00021643,4]
[363826946,1748890249785,-632.38,0.00021643,2]
[363826947,1748890249796,-685.19,0.00021643,2]
[363826948,1748890249806,-440.0,0.00021643,2]
[363826949,1748890249816,-456.31,0.00021643,2]
[363826950,1748890249825,-449.36,0.00021643,2]
[363826951,1748890249835,-608.92,0.00021643,2]
[363826952,1748890249846,-579.48,0.00021643,2]
[363826953,1748890249856,-528.51,0.00021643,2]
[363826954,1748890249867,-1196.61,0.00021643,2]
[363826955,1748890249877,-1374.43,0.00021643,2]
[363826956,1748890249887,-510.66581224,0.00021643,2]
[363826957,1748890249897,-1090.80427218,0.00021728,5]
[363826958,1748890249907,-212.83419937,0.0002176,10]
[363826959,1748890249917,-12668.79298183,0.0002176,10]
[363826960,1748890249927,-842.5625,0.0002176,10]
[363826961,1748890249936,-23491.14,0.0002176,10]
[363826962,1748890249946,-26681.42,0.0002176,10]
[363826963,1748890249956,-22234.52,0.0002176,10]
[363826964,1748890249966,-41502.0,0.000218,2]
[363826965,1748890249977,-6757.33,0.000218,2]
[363826966,1748890249987,-151.0,0.000218,2]
[363826967,1748890249998,-151.0,0.000218,2]
[363826968,1748890250008,-594.9417706,0.0002181,2]
[363826969,1748890250019,-491.2818322,0.0002189,2]
[363826970,1748890250029,-364.4406513,0.0002189,2]
[363826971,1748890250039,-364.4406513,0.0002189,2]
[363826972,1748890250050,-500.0,0.000219,2]
[363826973,1748890250060,-500.0,0.000219,2]
[363826974,1748890250071,-705.24,0.000219,2]
[363826975,1748890250083,-1607.72,0.000219,2]
[363826976,1748890250092,-370.58054704,0.000219,2]
[363826977,1748890250102,-50837.04,0.000219,2]
[363826978,1748890250113,-3000.0,0.00021902,2]
[363826979,1748890250123,-5000.0,0.00021906,2]
[363826980,1748890250135,-200.0,0.00021917,2]
[363826981,1748890250146,-500.0,0.00021917,2]
[363826982,1748890250156,-500.0,0.00021917,2]
[363826983,1748890250166,-500.0,0.00021917,2]
[363826984,1748890250176,-500.0,0.00021917,2]
[363826985,1748890250186,-500.0,0.00021917,2]
[363826986,1748890250196,-500.0,0.00021917,2]
[363826987,1748890250206,-500.0,0.00021917,2]
[363826988,1748890250216,-500.0,0.00021917,2]
[363826989,1748890250226,-500.0,0.00021917,2]
[363826990,1748890250235,-363.35405344,0.00021917,2]
[363826991,1748890250247,-632.38,0.00021917,2]
[363826992,1748890250257,-685.19,0.00021917,2]
[363826993,1748890250268,-440.0,0.00021917,2]
[363826994,1748890250278,-527.15,0.00021917,2]
[363826995,1748890250289,-527.15,0.00021917,2]
[363826996,1748890250300,-527.15,0.00021917,2]
[363826997,1748890250310,-527.15,0.00021917,2]
[363826998,1748890250321,-527.15,0.00021917,2]
[363826999,1748890250332,-527.15,0.00021917,2]
[363827000,1748890250342,-527.15,0.00021917,2]
[363827001,1748890250353,-527.15,0.00021917,2]
[363827002,1748890250363,-527.15,0.00021917,2]
[363827003,1748890250374,-527.15,0.00021917,2]
[363827004,1748890250384,-527.15,0.00021917,2]
[363827005,1748890250394,-527.15,0.00021917,2]
[363827006,1748890250405,-527.15,0.00021917,2]
[363827007,1748890250415,-527.15,0.00021917,2]
[363827008,1748890250424,-527.15,0.00021917,2]
[363827009,1748890250434,-527.15,0.00021917,2]
[363827010,1748890250445,-527.15,0.00021917,2]
[363827011,1748890250455,-527.15,0.00021917,2]
[363827012,1748890250465,-527.15,0.00021917,2]
[363827013,1748890250474,-527.15,0.00021917,2]
[363827014,1748890250484,-527.15,0.00021917,2]
[363827015,1748890250494,-456.31,0.00021917,2]
[363827016,1748890250504,-449.36,0.00021917,2]
[363827017,1748890250514,-608.92,0.00021917,2]
[363827018,1748890250528,-579.48,0.00021917,2]
[363827019,1748890250539,-500.0,0.00021917,2]
[363827020,1748890250553,-500.0,0.00021917,2]
[363827021,1748890250564,-500.0,0.00021917,2]
[363827022,1748890250576,-500.0,0.00021917,2]
[363827023,1748890250588,-528.51,0.00021917,2]
[363827024,1748890250598,-500.0,0.00021917,2]
[363827025,1748890250609,-500.0,0.00021917,2]
[363827026,1748890250619,-500.0,0.00021917,2]
[363827027,1748890250629,-500.0,0.00021917,2]
[363827028,1748890250640,-1196.61,0.00021917,2]
[363827029,1748890250650,-500.0,0.00021917,2]
[363827030,1748890250662,-500.0,0.00021917,2]
[363827031,1748890250673,-183.04845287,0.00021917,2]
[363827032,1748890250683,-1374.43,0.00021917,2]
[363827033,1748890250694,-323.0767398,0.00021918,7]
[363827034,1748890250704,-151.0,0.00021918,2]
[363827035,1748890250717,-150.0,0.00021918,2]
[363827036,1748890250726,-500.0,0.00021943,2]
[363827037,1748890250737,-1500.0,0.00021958,2]
[363827038,1748890250747,-163.8376925,0.00021965,2]
[363827039,1748890250757,-1090.80427218,0.00021969,6]
[363827040,1748890250768,-1314.779483,0.00021998,2]
[363827042,1748890250778,-1314.779483,0.00021998,2]
[363827043,1748890250787,-3882.20693147,0.00021999,3]
[363827044,1748890250797,-536690.62068,0.00021999,2]
[363827045,1748890250807,-364.4406513,0.00022,2]
[363827046,1748890250817,-364.4406513,0.00022,2]
[363827047,1748890250826,-364.4406513,0.00022,2]
[363827048,1748890250835,-364.06155,0.00022,2]
[363827049,1748890250845,-61.46298324,0.00022,2]
[363827050,1748890250854,-97593.71685147,0.00022,7]
[363827051,1748890250864,-2208.93,0.00022,2]
[363827052,1748890250874,-173.0,0.00022,2]
[363827053,1748890250883,-187.0,0.00022,2]
[363827054,1748890250893,-171.0,0.00022,2]
[363827055,1748890250902,-151.0,0.00022,7]
[363827056,1748890250911,-842.5625,0.00022,7]
[363827057,1748890250922,-151.0,0.00022,7]
[363827058,1748890250931,-175.581,0.00022,2]
[363827059,1748890250941,-1328.15,0.00022075,5]
[363827060,1748890250951,-152.51297585,0.00022155,2]
[363827061,1748890250961,-5000.0,0.00022155,2]
[363827062,1748890250971,-317.0304058,0.00022164,2]
[363827063,1748890250980,-153.0,0.00022164,2]
[363827064,1748890250990,-176.5287595,0.00022164,2]
[363827065,1748890251000,-572.502888,0.00022164,2]
[363827066,1748890251011,-153.0,0.00022164,2]
[363827067,1748890251021,-176.5287595,0.00022164,2]
[363827068,1748890251031,-1145.005776,0.00022164,2]
[363827069,1748890251040,-158.5152029,0.00022164,2]
[363827070,1748890251052,-176.5287595,0.00022164,2]
[363827071,1748890251063,-176.5287595,0.00022164,2]
[363827072,1748890251195,-153.0,0.00022164,2]
[363827073,1748890251206,-1328.15,0.00022175,5]
[363827074,1748890251217,-200.0,0.00022191,30]
[363827075,1748890251227,-500.0,0.00022191,5]
[363827076,1748890251237,-632.38,0.00022191,2]
[363827077,1748890251247,-685.19,0.00022191,2]
[363827078,1748890251258,-436.5,0.00022191,2]
[363827079,1748890251268,-527.15,0.00022191,2]
[363827080,1748890251279,-275.10473542,0.00022191,21]
[363827081,1748890251289,-456.31,0.00022191,2]
[363827082,1748890251300,-449.36,0.00022191,2]
[363827083,1748890251310,-608.92,0.00022191,2]
[363827084,1748890251321,-579.48,0.00022191,2]
[363827085,1748890251330,-528.51,0.00022191,2]
[363827086,1748890251340,-1196.61,0.00022191,2]
[363827087,1748890251350,-1374.43,0.00022191,2]
[363827088,1748890251360,-152.249243,0.0002221,7]
[363827089,1748890251370,-237.13056107,0.0002221,7]
[363827090,1748890251381,-151.0,0.0002221,7]
[363827091,1748890251391,-1090.80427218,0.0002221,6]
[363827092,1748890251402,-12500.0,0.00022225,2]
[363827093,1748890251413,-151.0,0.00022234,7]
[363827095,1748890251423,-12500.0,0.00022234,2]
[363827096,1748890251433,-12500.0,0.00022243,2]
[363827097,1748890251442,-12500.0,0.00022244,2]
[363827098,1748890251453,-1314.779483,0.00022244,2]
[363827099,1748890251463,-1314.779483,0.00022244,2]
[363827100,1748890251473,-3742.59133857,0.00022246,2]
[363827101,1748890251486,-153.0,0.00022274,2]
[363827102,1748890251495,-153.0,0.00022274,2]
[363827103,1748890251505,-153.0,0.00022274,2]
[363827104,1748890251515,-163.9382195,0.00022274,2]
[363827105,1748890251524,-153.0,0.00022274,2]
[363827106,1748890251534,-153.0,0.00022274,2]
[363827107,1748890251545,-153.0,0.00022274,2]
[363827108,1748890251555,-153.0,0.00022274,2]
[363827109,1748890251565,-153.0,0.00022274,2]
[363827110,1748890251575,-153.0,0.00022274,2]
[363827111,1748890251585,-153.0,0.00022274,2]
[363827112,1748890251595,-153.0,0.00022274,2]
[363827113,1748890251604,-153.0,0.00022274,2]
[363827114,1748890251614,-153.0,0.00022274,2]
[363827115,1748890251625,-153.0,0.00022274,2]
[363827116,1748890251635,-153.0,0.00022274,2]
[363827117,1748890251646,-153.0,0.00022274,2]
[363827118,1748890251656,-1328.15,0.00022275,3]
[363827119,1748890251665,-6808.99223782,0.0002232,7]
[363827120,1748890251675,-6808.99223782,0.0002232,7]
[363827121,1748890251685,-1328.15,0.00022375,2]
[363827122,1748890251694,-212.83419937,0.000224,7]
[363827123,1748890251704,-151.0,0.00022417,23]
[363827124,1748890251718,-5943.12,0.00022441,2]
[363827125,1748890251732,-2030.80791251,0.0002245,2]
[363827126,1748890251741,-1090.80427218,0.00022452,7]
[363827127,1748890251751,-200.0,0.00022465,30]
[363827128,1748890251762,-500.0,0.00022465,2]
[363827129,1748890251772,-632.38,0.00022465,2]
[363827130,1748890251783,-685.19,0.00022465,2]
[363827131,1748890251794,-527.15,0.00022465,2]
[363827132,1748890251804,-456.31,0.00022465,2]
[363827133,1748890251813,-449.36,0.00022465,2]
[363827134,1748890251823,-608.92,0.00022465,2]
[363827135,1748890251833,-579.48,0.00022465,2]
[363827136,1748890251844,-528.51,0.00022465,2]
[363827137,1748890251854,-1196.61,0.00022465,2]
[363827138,1748890251863,-1374.43,0.00022465,2]
[363827139,1748890251873,-65624.17512567,0.00022466,2]
[363827140,1748890251883,-500.0,0.00022467,2]
[363827141,1748890251894,-1328.15,0.00022475,2]
[363827142,1748890251903,-1000.0,0.00022491,2]
[363827143,1748890251913,-2000.0,0.000225,2]
[363827144,1748890251923,-2952.67399365,0.00022558,2]
[363827145,1748890251932,-1328.15,0.00022575,3]
[363827146,1748890251942,-159.45006171,0.00022603,2]
[363827147,1748890251951,-354.793915,0.00022603,2]
[363827148,1748890251960,-151.0,0.00022644,24]
[363827149,1748890251971,-600.0,0.00022658,2]
[363827150,1748890251980,-1328.15,0.00022675,5]